fUSD/lending_fUSD_20240225
["ID","MTS","AMOUNT","RATE_DAILY","PERIOD"]
[315147980,1708889440620,-500.0,0.00023899,2]
[315147981,1708889440629,-500.0,0.00023899,2]
[315147982,1708889440639,-500.0,0.00023899,2]
[315147983,1708889440648,-500.0,0.00023899,2]
[315147984,1708889440658,-500.0,0.00023899,2]
[315147985,1708889440667,-500.0,0.00023899,2]
[315147986,1708889440677,-500.0,0.00023899,2]
[315147987,1708889440686,-196.04328468,0.00023899,2]
[315147988,1708889440696,-500.0,0.00023899,2]
[315147989,1708889440705,-500.0,0.00023899,2]
[315147990,1708889440714,-500.0,0.00023899,2]
[315147991,1708889440724,-500.0,0.00023899,2]
[315147992,1708889440733,-500.0,0.00023899,2]
[315147993,1708889440743,-500.0,0.00023899,2]
[315147994,1708889440752,-500.0,0.00023899,2]
[315147995,1708889440762,-500.0,0.00023899,2]
[315147996,1708889440772,-500.0,0.00023899,2]
[315147997,1708889440782,-500.0,0.00023899,2]
[315147998,1708889440791,-500.0,0.00023899,2]
[315147999,1708889440801,-509.60861112,0.00023899,2]
[315148000,1708889440810,-508.35268641,0.00023899,2]
[315148001,1708889440820,-500.0,0.00023899,2]
[315148002,1708889440829,-500.0,0.00023899,2]
[315148003,1708889440838,-500.0,0.00023899,2]
[315148004,1708889440848,-500.0,0.00023899,2]
[315148005,1708889440857,-500.0,0.00023899,2]
[315148006,1708889440867,-500.0,0.00023899,2]
[315148007,1708889440876,-500.0,0.00023899,2]
[315148008,1708889440886,-500.0,0.00023899,2]
[315148009,1708889440896,-500.0,0.00023899,2]
[315148010,1708889440906,-500.0,0.00023899,2]
[315148011,1708889440915,-500.0,0.00023899,2]
[315148012,1708889440925,-500.0,0.00023899,2]
[315148013,1708889440935,-500.0,0.00023899,2]
[315148014,1708889440944,-500.0,0.00023899,2]
[315148015,1708889440954,-561.08657846,0.00023899,2]
[315148016,1708889440963,-480.12924905,0.00023899,2]
[315148017,1708889440973,-500.0,0.00023899,2]
[315148018,1708889440982,-500.0,0.00023899,2]
[315148019,1708889440991,-520.57670539,0.00023899,2]
[315148020,1708889441000,-314.66849773,0.00023899,2]
[315148021,1708889441010,-500.68,0.00023899,2]
[315148022,1708889441019,-500.0,0.00023899,2]
[315148023,1708889441028,-500.0,0.00023899,2]
[315148024,1708889441037,-500.0,0.00023899,2]
[315148025,1708889441047,-500.0,0.00023899,2]
[315148026,1708889441056,-500.0,0.00023899,2]
[315148027,1708889441065,-500.0,0.00023899,2]
[315148028,1708889441074,-500.0,0.00023899,2]
[315148029,1708889441083,-500.0,0.00023899,2]
[315148030,1708889441092,-566.97988643,0.00023899,2]
[315148031,1708889441101,-500.0,0.00023899,2]
[315148032,1708889441110,-500.0,0.00023899,2]
[315148033,1708889441121,-500.0,0.00023899,2]
[315148034,1708889441129,-500.0,0.00023899,2]
[315148035,1708889441137,-500.0,0.00023899,2]
[315148036,1708889441145,-509.03216785,0.00023899,2]
[315148037,1708889441154,-500.0,0.00023899,2]
[315148038,1708889441163,-500.0,0.00023899,2]
[315148039,1708889441172,-515.40970482,0.00023899,2]
[315148040,1708889441182,-517.11275279,0.00023899,2]
[315148041,1708889441191,-500.0,0.00023899,2]
[315148042,1708889441200,-517.3809233,0.00023899,2]
[315148043,1708889441209,-500.0,0.00023899,2]
[315148044,1708889441220,-509.29566072,0.00023899,2]
[315148045,1708889441230,-500.0,0.00023899,2]
[315148046,1708889441239,-500.0,0.00023899,2]
[315148047,1708889441250,-500.0,0.00023899,2]
[315148048,1708889441260,-500.0,0.00023899,2]
[315148049,1708889441272,-529.63141549,0.00023899,2]
[315148050,1708889441282,-500.0,0.00023899,2]
[315148051,1708889441291,-500.0,0.00023899,2]
[315148052,1708889441301,-505.31906683,0.00023899,2]
[315148053,1708889441310,-500.0,0.00023899,2]
[315148054,1708889441321,-512.22272494,0.00023899,2]
[315148055,1708889441330,-500.0,0.00023899,2]
[315148056,1708889441339,-500.0,0.00023899,2]
[315148057,1708889441349,-417.99686501,0.00023899,2]
[315148058,1708889441359,-511.87406751,0.00023899,2]
[315148059,1708889441369,-500.0,0.00023899,2]
[315148060,1708889441379,-498.45188318,0.00023899,2]
[315148061,1708889441388,-506.15741123,0.00023899,2]
[315148062,1708889441398,-503.69715135,0.00023899,2]
[315148063,1708889441407,-500.0,0.00023899,2]
[315148064,1708889441417,-500.0,0.00023899,2]
[315148067,1708889441539,-500.0,0.00023899,2]
[315148069,1708889441548,-500.0,0.00023899,2]
[315148071,1708889441558,-501.87647111,0.00023899,2]
[315148073,1708889441568,-500.0,0.00023899,2]
[315148075,1708889441577,-504.01315214,0.00023899,2]
[315148077,1708889441586,-500.0,0.00023899,2]
[315148078,1708889441595,-500.0,0.00023899,2]
[315148080,1708889441605,-513.21556363,0.00023899,2]
[315148082,1708889441615,-500.0,0.00023899,2]
[315148084,1708889441625,-508.00608451,0.00023899,2]
[315148086,1708889441634,-500.0,0.00023899,2]
[315148087,1708889441644,-507.9366445,0.00023899,2]
[315148088,1708889441653,-500.0,0.00023899,2]
[315148089,1708889441662,-509.06624899,0.00023899,2]
[315148090,1708889441672,-506.08829649,0.00023899,2]
[315148091,1708889441681,-512.08575584,0.00023899,2]
[315148092,1708889441691,-500.0,0.00023899,2]
[315148093,1708889441701,-511.12052832,0.00023899,2]
[315148094,1708889441710,-500.0,0.00023899,2]
[315148095,1708889441720,-505.890825,0.00023899,2]
[315148096,1708889441729,-500.0,0.00023899,2]
[315148097,1708889441739,-500.0,0.00023899,2]
[315148098,1708889441749,-500.0,0.00023899,2]
[315148099,1708889441759,-500.0,0.00023899,2]
[315148100,1708889441768,-500.0,0.00023899,2]
[315148101,1708889441778,-500.0,0.00023899,2]
[315148102,1708889441787,-506.1237944,0.00023899,2]
[315148103,1708889441797,-510.71853036,0.00023899,2]
[315148104,1708889441806,-523.90117579,0.00023899,2]
[315148105,1708889441816,-500.0,0.00023899,2]
[315148106,1708889441826,-500.0,0.00023899,2]
[315148107,1708889441835,-510.73290823,0.00023899,2]
[315148108,1708889441845,-525.81981005,0.00023899,2]
[315148109,1708889441854,-500.0,0.00023899,2]
[315148110,1708889441864,-505.16368706,0.00023899,2]
[315148111,1708889441874,-526.76241383,0.00023899,2]
[315148112,1708889441883,-503.00536993,0.00023899,2]
[315148113,1708889441892,-500.0,0.00023899,2]
[315148114,1708889441902,-504.55175381,0.00023899,2]
[315148115,1708889441911,-500.0,0.00023899,2]
[315148116,1708889441920,-507.75538089,0.00023899,2]
[315148117,1708889441930,-500.0,0.00023899,2]
[315148118,1708889441939,-500.0,0.00023899,2]
[315148119,1708889441948,-510.79045899,0.00023899,2]
[315148120,1708889441958,-500.0,0.00023899,2]
[315148121,1708889441967,-500.0,0.00023899,2]
[315148122,1708889441977,-508.39623791,0.00023899,2]
[315148123,1708889441987,-469.08972865,0.00023899,2]
[315148124,1708889441997,-500.0,0.00023899,2]
[315148125,1708889442006,-500.0,0.00023899,2]
[315148126,1708889442015,-500.0,0.00023899,2]
[315148127,1708889442025,-500.0,0.00023899,2]
[315148128,1708889442034,-500.0,0.00023899,2]
[315148129,1708889442043,-500.0,0.00023899,2]
[315148130,1708889442053,-500.0,0.00023899,2]
[315148131,1708889442062,-500.0,0.00023899,2]
[315148132,1708889442071,-507.05166531,0.00023899,2]
[315148133,1708889442081,-500.0,0.00023899,2]
[315148134,1708889442090,-500.0,0.00023899,2]
[315148135,1708889442099,-500.0,0.00023899,2]
[315148136,1708889442108,-508.38269299,0.00023899,2]
[315148137,1708889442119,-511.33749481,0.00023899,2]
[315148138,1708889442129,-500.0,0.00023899,2]
[315148139,1708889442138,-625.99,0.00023899,2]
[315148140,1708889442148,-500.0,0.00023899,2]
[315148141,1708889442158,-500.0,0.00023899,2]
[315148142,1708889442167,-500.0,0.00023899,2]
[315148143,1708889442177,-500.0,0.00023899,2]
[315148144,1708889442187,-504.78245961,0.00023899,2]
[315148145,1708889442196,-500.0,0.00023899,2]
[315148146,1708889442205,-500.0,0.00023899,2]
[315148147,1708889442215,-583.54035979,0.00023899,2]
[315148148,1708889442225,-500.0,0.00023899,2]
[315148149,1708889442235,-500.0,0.00023899,2]
[315148150,1708889442245,-503.44637895,0.00023899,2]
[315148151,1708889442258,-509.19606147,0.00023899,2]
[315148152,1708889442268,-500.0,0.00023899,2]
[315148153,1708889442279,-512.90207862,0.00023899,2]
[315148154,1708889442288,-500.0,0.00023899,2]
[315148155,1708889442297,-500.0,0.00023899,2]
[315148156,1708889442307,-500.0,0.00023899,2]
[315148157,1708889442316,-503.57155842,0.00023899,2]
[315148158,1708889442326,-500.0,0.00023899,2]
[315148159,1708889442336,-500.0,0.00023899,2]
[315148160,1708889442346,-500.0,0.00023899,2]
[315148161,1708889442355,-500.0,0.00023899,2]
[315148162,1708889442366,-503.06829747,0.00023899,2]
[315148163,1708889442377,-500.0,0.00023899,2]
[315148164,1708889442386,-500.0,0.00023899,2]
[315148165,1708889442396,-500.0,0.00023899,2]
[315148166,1708889442406,-500.0,0.00023899,2]
[315148167,1708889442415,-500.0,0.00023899,2]
[315148168,1708889442424,-501.73103809,0.00023899,2]
[315148169,1708889442434,-473.85459898,0.00023899,2]
[315148170,1708889442443,-500.0,0.00023899,2]
[315148171,1708889442452,-159.91,0.00023899,2]
[315148172,1708889442462,-500.0,0.00023899,2]
[315148173,1708889442471,-505.66475097,0.00023899,2]
[315148174,1708889442480,-510.57051486,0.00023899,2]
[315148175,1708889442489,-500.0,0.00023899,2]
[315148176,1708889442499,-500.0,0.00023899,2]
[315148177,1708889442508,-500.0,0.00023899,2]
[315148179,1708889442517,-511.14149349,0.00023899,2]
[315148181,1708889442526,-500.0,0.00023899,2]
[315148183,1708889442535,-509.03329373,0.00023899,2]
[315148184,1708889442544,-500.0,0.00023899,2]
[315148185,1708889442553,-512.46961911,0.00023899,2]
[315148186,1708889442562,-502.2981108,0.00023899,2]
[315148187,1708889442571,-500.0,0.00023899,2]
[315148188,1708889442580,-500.0,0.00023899,2]
[315148190,1708889442590,-504.86146436,0.00023899,2]
[315148191,1708889442599,-500.0,0.00023899,2]
[315148192,1708889442609,-500.0,0.00023899,2]
[315148193,1708889442619,-505.3087823,0.00023899,2]
[315148194,1708889442628,-500.0,0.00023899,2]
[315148195,1708889442638,-500.0,0.00023899,2]
[315148196,1708889442647,-500.0,0.00023899,2]
[315148197,1708889442657,-500.0,0.00023899,2]
[315148199,1708889442666,-512.72612275,0.00023899,2]
[315148200,1708889442675,-500.0,0.00023899,2]
[315148201,1708889442685,-500.0,0.00023899,2]
[315148202,1708889442694,-500.0,0.00023899,2]
[315148203,1708889442703,-500.0,0.00023899,2]
[315148204,1708889442712,-247.74499171,0.00023899,2]
[315148206,1708889442721,-500.0,0.00023899,2]
[315148208,1708889442731,-500.0,0.00023899,2]
[315148210,1708889442740,-500.0,0.00023899,2]
[315148212,1708889442749,-500.0,0.00023899,2]
[315148214,1708889442759,-511.70684125,0.00023899,2]
[315148217,1708889442769,-500.0,0.00023899,2]
[315148220,1708889442779,-160.79,0.00023899,2]
[315148222,1708889442788,-528.41,0.00023899,2]
[315148223,1708889442797,-500.0,0.00023899,2]
[315148224,1708889442807,-500.0,0.00023899,2]
[315148225,1708889442816,-500.0,0.00023899,2]
[315148226,1708889442826,-500.0,0.00023899,2]
[315148227,1708889442836,-500.0,0.00023899,2]
[315148228,1708889442846,-500.0,0.00023899,2]
[315148229,1708889442857,-500.0,0.00023899,2]
[315148230,1708889442866,-500.0,0.00023899,2]
[315148231,1708889442876,-500.0,0.00023899,2]
[315148232,1708889442887,-500.0,0.00023899,2]
[315148233,1708889442896,-500.0,0.00023899,2]
[315148234,1708889442907,-512.62156315,0.00023899,2]
[315148235,1708889442917,-559.54559186,0.00023899,2]
[315148236,1708889442926,-532.61530258,0.00023899,2]
[315148237,1708889442936,-505.60338383,0.00023899,2]
[315148238,1708889442946,-500.0,0.00023899,2]
[315148239,1708889442956,-500.0,0.00023899,2]
[315148240,1708889442965,-500.0,0.00023899,2]
[315148241,1708889442975,-500.0,0.00023899,2]
[315148242,1708889442985,-500.0,0.00023899,2]
[315148243,1708889442994,-500.0,0.00023899,2]
[315148244,1708889443004,-500.0,0.00023899,2]
[315148245,1708889443013,-500.0,0.00023899,2]
[315148246,1708889443023,-510.72848023,0.00023899,2]
[315148247,1708889443032,-500.0,0.00023899,2]
[315148248,1708889443042,-507.20370587,0.00023899,2]
[315148249,1708889443052,-509.73380263,0.00023899,2]
[315148250,1708889443062,-500.0,0.00023899,2]
[315148251,1708889443072,-500.0,0.00023899,2]
[315148252,1708889443082,-500.0,0.00023899,2]
[315148253,1708889443092,-500.0,0.00023899,2]
[315148254,1708889443103,-552.91,0.00023899,2]
[315148255,1708889443112,-500.0,0.00023899,2]
[315148256,1708889443124,-510.57190432,0.00023899,2]
[315148257,1708889443133,-510.58944491,0.00023899,2]
[315148258,1708889443143,-500.0,0.00023899,2]
[315148259,1708889443152,-500.0,0.00023899,2]
[315148260,1708889443162,-508.47663582,0.00023899,2]
[315148261,1708889443171,-500.0,0.00023899,2]
[315148262,1708889443181,-503.43647403,0.00023899,2]
[315148263,1708889443190,-500.0,0.00023899,2]
[315148265,1708889443200,-500.0,0.00023899,2]
[315148266,1708889443209,-500.0,0.00023899,2]
[315148268,1708889443219,-500.0,0.00023899,2]
[315148269,1708889443228,-500.0,0.00023899,2]
[315148270,1708889443243,-503.47069947,0.00023899,2]
[315148271,1708889443253,-506.6699164,0.00023899,2]
[315148272,1708889443262,-500.0,0.00023899,2]
[315148273,1708889443271,-500.0,0.00023899,2]
[315148274,1708889443281,-452.83,0.00023899,2]
[315148275,1708889443291,-500.0,0.00023899,2]
[315148276,1708889443300,-506.44360194,0.00023899,2]
[315148277,1708889443310,-500.0,0.00023899,2]
[315148278,1708889443319,-500.0,0.00023899,2]
[315148279,1708889443328,-500.0,0.00023899,2]
[315148280,1708889443339,-511.70150995,0.00023899,2]
[315148281,1708889443348,-500.0,0.00023899,2]
[315148282,1708889443358,-500.0,0.00023899,2]
[315148283,1708889443368,-529.53220934,0.00023899,2]
[315148284,1708889443377,-500.0,0.00023899,2]
[315148285,1708889443386,-500.0,0.00023899,2]
[315148286,1708889443395,-500.0,0.00023899,2]
[315148287,1708889443404,-500.0,0.00023899,2]
[315148288,1708889443414,-440.41382092,0.00023899,2]
[315148289,1708889443423,-519.48601462,0.00023899,2]
[315148290,1708889443432,-500.0,0.00023899,2]
[315148291,1708889443441,-500.0,0.00023899,2]
[315148292,1708889443450,-500.0,0.00023899,2]
[315148293,1708889443459,-500.0,0.00023899,2]
[315148294,1708889443468,-500.0,0.00023899,2]
[315148295,1708889443478,-500.0,0.00023899,2]
[315148296,1708889443487,-500.0,0.00023899,2]
[315148297,1708889443496,-507.41809111,0.00023899,2]
[315148298,1708889443505,-500.0,0.00023899,2]
[315148299,1708889443514,-505.49094388,0.00023899,2]
[315148300,1708889443524,-522.47602298,0.00023899,2]
[315148301,1708889443533,-518.05352843,0.00023899,2]
[315148302,1708889443542,-500.0,0.00023899,2]
[315148303,1708889443556,-509.16780247,0.00023899,2]
[315148304,1708889443565,-500.0,0.00023899,2]
[315148305,1708889443574,-500.0,0.00023899,2]
[315148306,1708889443583,-279.59072717,0.00023899,2]
[315148307,1708889443592,-500.0,0.00023899,2]
[315148308,1708889443601,-504.22997444,0.00023899,2]
[315148309,1708889443610,-500.0,0.00023899,2]
[315148310,1708889443621,-509.85724053,0.00023899,2]
[315148311,1708889443631,-500.0,0.00023899,2]
[315148312,1708889443639,-515.54037188,0.00023899,2]
[315148313,1708889443648,-512.03117327,0.00023899,2]
[315148314,1708889443657,-500.0,0.00023899,2]
[315148315,1708889443867,-500.0,0.00023899,2]
[315148316,1708889443926,-500.0,0.00023899,2]
[315148317,1708889443936,-500.0,0.00023899,2]
[315148318,1708889443945,-500.0,0.00023899,2]
[315148319,1708889443955,-500.0,0.00023899,2]
[315148320,1708889443964,-508.96907304,0.00023899,2]
[315148321,1708889443974,-500.0,0.00023899,2]
[315148322,1708889443984,-505.23864248,0.00023899,2]
[315148323,1708889443993,-500.0,0.00023899,2]
[315148324,1708889444003,-512.49593999,0.00023899,2]
[315148325,1708889444012,-500.0,0.00023899,2]
[315148326,1708889444021,-500.0,0.00023899,2]
[315148327,1708889444031,-500.0,0.00023899,2]
[315148328,1708889444040,-512.39839583,0.00023899,2]
[315148329,1708889444049,-503.4828305,0.00023899,2]
[315148330,1708889444058,-502.62220082,0.00023899,2]
[315148331,1708889444067,-500.0,0.00023899,2]
[315148332,1708889444076,-503.99008617,0.00023899,2]
[315148333,1708889444086,-516.23555513,0.00023899,2]
[315148334,1708889444095,-500.0,0.00023899,2]
[315148335,1708889444104,-512.80418189,0.00023899,2]
[315148336,1708889444113,-500.0,0.00023899,2]
[315148337,1708889444123,-500.0,0.00023899,2]
[315148338,1708889444133,-586.69,0.00023899,2]
[315148339,1708889444142,-500.0,0.00023899,2]
[315148340,1708889444151,-508.18630144,0.00023899,2]
[315148341,1708889444161,-500.0,0.00023899,2]
[315148342,1708889444170,-500.0,0.00023899,2]
[315148343,1708889444179,-500.0,0.00023899,2]
[315148344,1708889444189,-500.0,0.00023899,2]
[315148345,1708889444198,-496.01,0.00023899,2]
[315148346,1708889444208,-500.0,0.00023899,2]
[315148347,1708889444217,-500.0,0.00023899,2]
[315148348,1708889444226,-162.13,0.00023899,2]
[315148349,1708889444241,-500.0,0.00023899,2]
[315148350,1708889444251,-505.9961217,0.00023899,2]
[315148351,1708889444260,-500.0,0.00023899,2]
[315148352,1708889444269,-500.0,0.00023899,2]
[315148353,1708889444279,-500.0,0.00023899,2]
[315148354,1708889444288,-500.0,0.00023899,2]
[315148355,1708889444298,-500.0,0.00023899,2]
[315148356,1708889444308,-510.39814874,0.00023899,2]
[315148357,1708889444317,-499.39314712,0.00023899,2]
[315148358,1708889444327,-561.62008962,0.00023899,2]
[315148359,1708889444338,-500.0,0.00023899,2]
[315148360,1708889444347,-500.0,0.00023899,2]
[315148361,1708889444356,-500.0,0.00023899,2]
[315148362,1708889444366,-287.2,0.00023899,2]
[315148363,1708889444376,-507.98318771,0.00023899,2]
[315148364,1708889444385,-517.81983865,0.00023899,2]
[315148365,1708889444395,-500.0,0.00023899,2]
[315148366,1708889444404,-500.0,0.00023899,2]
[315148367,1708889444414,-179.44139044,0.00023899,2]
[315148368,1708889444423,-500.0,0.00023899,2]
[315148369,1708889444432,-511.2509071,0.00023899,2]
[315148370,1708889444441,-500.0,0.00023899,2]
[315148371,1708889444451,-209.71,0.00023899,2]
[315148372,1708889444460,-500.0,0.00023899,2]
[315148373,1708889444469,-509.29883836,0.00023899,2]
[315148374,1708889444479,-500.0,0.00023899,2]
[315148375,1708889444489,-513.116768,0.00023899,2]
[315148376,1708889444498,-500.0,0.00023899,2]
[315148377,1708889444507,-500.0,0.00023899,2]
[315148378,1708889444517,-500.0,0.00023899,2]
[315148379,1708889444526,-517.70779906,0.00023899,2]
[315148380,1708889444535,-500.0,0.00023899,2]
[315148381,1708889444545,-515.12579578,0.00023899,2]
[315148382,1708889444554,-511.31485574,0.00023899,2]
[315148383,1708889444563,-506.75825107,0.00023899,2]
[315148384,1708889444572,-500.0,0.00023899,2]
[315148385,1708889444581,-500.0,0.00023899,2]
[315148386,1708889444591,-504.33164549,0.00023899,2]
[315148387,1708889444600,-500.0,0.00023899,2]
[315148388,1708889444609,-500.0,0.00023899,2]
[315148389,1708889444620,-504.23367607,0.00023899,2]
[315148390,1708889444629,-500.0,0.00023899,2]
[315148391,1708889444638,-500.0,0.00023899,2]
[315148392,1708889444647,-504.57242151,0.00023899,2]
[315148393,1708889444657,-500.0,0.00023899,2]
[315148394,1708889444667,-500.0,0.00023899,2]
[315148395,1708889444676,-504.82825033,0.00023899,2]
[315148396,1708889444686,-500.0,0.00023899,2]
[315148397,1708889444696,-556.11433352,0.00023899,2]
[315148398,1708889444705,-500.0,0.00023899,2]
[315148399,1708889444714,-500.0,0.00023899,2]
[315148400,1708889444724,-168.85625237,0.00023899,2]
[315148401,1708889444734,-500.0,0.00023899,2]
[315148402,1708889444743,-503.24733786,0.00023899,2]
[315148403,1708889444753,-524.74678241,0.00023899,2]
[315148404,1708889444763,-500.0,0.00023899,2]
[315148405,1708889444773,-519.64924212,0.00023899,2]
[315148406,1708889444782,-500.0,0.00023899,2]
[315148407,1708889444792,-500.0,0.00023899,2]
[315148408,1708889444801,-500.0,0.00023899,2]
[315148409,1708889444811,-500.0,0.00023899,2]
[315148410,1708889444820,-515.77680012,0.00023899,2]
[315148411,1708889444830,-500.0,0.00023899,2]
[315148412,1708889444839,-500.0,0.00023899,2]
[315148413,1708889444849,-500.0,0.00023899,2]
[315148414,1708889444859,-522.26225667,0.00023899,2]
[315148415,1708889444870,-500.0,0.00023899,2]
[315148416,1708889444879,-500.0,0.00023899,2]
[315148417,1708889444888,-427.81206429,0.00023899,2]
[315148418,1708889444898,-500.0,0.00023899,2]
[315148419,1708889444908,-507.69941451,0.00023899,2]
[315148420,1708889444917,-506.19668232,0.00023899,2]
[315148421,1708889444927,-500.0,0.00023899,2]
[315148422,1708889444937,-500.0,0.00023899,2]
[315148423,1708889444947,-500.0,0.00023899,2]
[315148424,1708889444957,-500.0,0.00023899,2]
[315148425,1708889444967,-511.50603987,0.00023899,2]
[315148426,1708889444976,-500.0,0.00023899,2]
[315148427,1708889444986,-500.0,0.00023899,2]
[315148428,1708889444996,-512.47405123,0.00023899,2]
[315148429,1708889445006,-506.61945599,0.00023899,2]
[315148430,1708889445015,-500.0,0.00023899,2]
[315148431,1708889445026,-500.0,0.00023899,2]
[315148432,1708889445035,-531.47411163,0.00023899,2]
[315148433,1708889445045,-504.0380682,0.00023899,2]
[315148434,1708889445055,-316.81,0.00023899,2]
[315148435,1708889445064,-514.70805539,0.00023899,2]
[315148436,1708889445073,-500.0,0.00023899,2]
[315148437,1708889445082,-500.0,0.00023899,2]
[315148438,1708889445091,-522.17101558,0.00023899,2]
[315148439,1708889445100,-507.18686864,0.00023899,2]
[315148440,1708889445110,-519.6294157,0.00023899,2]
[315148441,1708889445120,-500.0,0.00023899,2]
[315148442,1708889445130,-514.42747694,0.00023899,2]
[315148443,1708889445140,-500.0,0.00023899,2]
[315148444,1708889445149,-505.59629415,0.00023899,2]
[315148445,1708889445158,-500.0,0.00023899,2]
[315148446,1708889445168,-500.0,0.00023899,2]
[315148447,1708889445177,-500.0,0.00023899,2]
[315148448,1708889445188,-500.0,0.00023899,2]
[315148449,1708889445197,-516.99692799,0.00023899,2]
[315148450,1708889445207,-500.0,0.00023899,2]
[315148451,1708889445216,-500.0,0.00023899,2]
[315148452,1708889445225,-500.0,0.00023899,2]
[315148453,1708889445238,-509.54015427,0.00023899,2]
[315148454,1708889445246,-418.75,0.00023899,2]
[315148455,1708889445256,-500.0,0.00023899,2]
[315148456,1708889445265,-500.0,0.00023899,2]
[315148457,1708889445275,-348.89,0.00023899,2]
[315148458,1708889445285,-500.0,0.00023899,2]
[315148459,1708889445295,-500.0,0.00023899,2]
[315148460,1708889445304,-500.0,0.00023899,2]
[315148461,1708889445315,-500.0,0.00023899,2]
[315148462,1708889445324,-500.0,0.00023899,2]
[315148463,1708889445333,-500.0,0.00023899,2]
[315148464,1708889445342,-500.0,0.00023899,2]
[315148465,1708889445351,-500.0,0.00023899,2]
[315148466,1708889445360,-522.66586356,0.00023899,2]
[315148467,1708889445370,-500.0,0.00023899,2]
[315148468,1708889445379,-500.0,0.00023899,2]
[315148469,1708889445389,-500.0,0.00023899,2]
[315148470,1708889445398,-500.0,0.00023899,2]
[315148471,1708889445407,-500.0,0.00023899,2]
[315148472,1708889445417,-505.67964466,0.00023899,2]
[315148473,1708889445426,-500.0,0.00023899,2]
[315148474,1708889445436,-500.0,0.00023899,2]
[315148475,1708889445445,-500.0,0.00023899,2]
[315148476,1708889445454,-508.96991609,0.00023899,2]
[315148477,1708889445463,-508.40663367,0.00023899,2]
[315148478,1708889445472,-514.80324626,0.00023899,2]
[315148479,1708889445481,-500.0,0.00023899,2]
[315148480,1708889445491,-325.59,0.00023899,2]
[315148481,1708889445500,-500.0,0.00023899,2]
[315148482,1708889445509,-500.0,0.00023899,2]
[315148484,1708889445519,-500.0,0.00023899,2]
[315148485,1708889445528,-500.0,0.00023899,2]
[315148486,1708889445537,-500.0,0.00023899,2]
[315148487,1708889445546,-500.0,0.00023899,2]
[315148488,1708889445555,-500.0,0.00023899,2]
[315148489,1708889445564,-500.0,0.00023899,2]
[315148490,1708889445574,-509.91175843,0.00023899,2]
[315148492,1708889445583,-500.0,0.00023899,2]
[315148494,1708889445592,-500.0,0.00023899,2]
[315148495,1708889445601,-500.0,0.00023899,2]
[315148496,1708889445611,-500.0,0.00023899,2]
[315148497,1708889445621,-499.16646907,0.00023899,2]
[315148498,1708889445629,-500.0,0.00023899,2]
[315148499,1708889445638,-500.0,0.00023899,2]
[315148500,1708889445647,-500.0,0.00023899,2]
[315148501,1708889445657,-500.0,0.00023899,2]
[315148502,1708889445666,-250.5,0.00023899,2]
[315148503,1708889445675,-503.88204192,0.00023899,2]
[315148505,1708889445683,-509.06360408,0.00023899,2]
[315148507,1708889445693,-505.15679597,0.00023899,2]
[315148508,1708889445702,-500.0,0.00023899,2]
[315148509,1708889445711,-500.0,0.00023899,2]
[315148510,1708889445720,-500.0,0.00023899,2]
[315148511,1708889445730,-500.0,0.00023899,2]
[315148512,1708889445739,-500.0,0.00023899,2]